[Event "EICC 2025"]
[Site "Eforie-Nord"]
[Date "2025.03.17"]
[Round "3.42"]
[White "Bartel, Mateusz"]
[Black "Willow, Jonah B"]
[Result "0-1"]
[Annotator "TA"]
[ECO "C13"]
[WhiteElo "2621"]
[BlackElo "2450"]
[PlyCount "56"]
[EventDate "2025.03.14"]
[EventType "swiss"]
[EventCountry "ROU"]
[SourceTitle "playchess.com"]
[Source "ChessBase"]
[SourceQuality "1"]
[TimeControl "40/5400+30:1800+30"]

{[%evp 12,56,22,31,24,32,28,26,27,27,27,23,28,20,21,5,11,17,12,0,16,10,10,0,0,7,0,0,0,0,0,-77,-46,-131,-66,-215,-227,-221,-240,-221,-206,-307,-273,-456,-427,-654,-643]} 1. e4 {[%emt 0:00:04]} e6 {[%emt 0:00:17]} 2. d4 {[%emt 0:00:08]} d5 {[%emt 0:00:05]} 3. Nc3 {[%emt 0:00:04]} Nf6 {[%emt 0:00:22]} 4. Bg5 {[%emt 0:00:07]} dxe4 {[%emt 0:00:19]} 5. Nxe4 {[%emt 0:00:07]} Be7 {[%emt 0:00:15]} 6. Bxf6 {[%emt 0:00:30]} gxf6 {[%emt 0:00:06]} 7. Qd2 {[%emt 0:00:10]} c5 {[%emt 0:00:11] C13: French: Classical System: 4 Bg5 Be7, Alekhine-Chatard Attack.} 8. Nxc5 {[%emt 0:00:52]} Bxc5 {[%emt 0:00:06]} 9. dxc5 {[%emt 0:00:06]} Qxd2+ {[%emt 0:00:05] White has an edge.} 10. Kxd2 {[%emt 0:00:06]} a5 {[%emt 0:00:03]} 11. Ne2 {[%emt 0:14:59]} Ke7 {[%emt 0:11:13] Black sacrificed a pawn} 12. Nc3 {[%emt 0:03:21]} Bd7 {[%emt 0:08:14] Against Na4} 13. a3 $146 {[%emt 0:07:05]} (13. Bd3 Bc6 14. a3 Rg8 15. Rhg1 Nd7 16. b4 axb4 17. axb4 Rxa1 18. Rxa1 Rg4 19. Rb1 Bxg2 {½-½ Kovalev,V (2603)-Agmanov,Z (2430) Astana Zhuldyzdary op-A 2023 (6)}) 13... Rc8 {[%emt 0:05:55]} 14. Bd3 {[%emt 0:01:01]} Rxc5 {[%emt 0:00:48]} 15. b4 {[%emt 0:00:02]} Rg5 {[%emt 0:07:23]} 16. b5 {[%emt 0:01:36]} Be8 {[%emt 0:29:50]} 17. h4 {[%emt 0:06:51]} Rg7 {[%emt 0:03:19]} 18. Be4 {[%emt 0:04:04]} Ra7 {[%emt 0:00:47][%cal Ba8a7,Ba7c7,Bc7c3,Bc3a3,Ba3d3][%mdl 32]} 19. Rab1 {[%emt 0:11:31] Black must now prevent b6.} b6 {[%emt 0:00:27]} 20. Na4 {[%emt 0:00:24]} Nd7 {[%emt 0:01:03]} 21. Ke3 {[%emt 0:21:50]} (21. Bf3 $11 {keeps the balance.}) 21... Rc7 $17 {[%emt 0:02:11]} 22. Rhd1 {[%emt 0:00:02] [#]} (22. Bf3 $15) 22... Rg4 {[%emt 0:08:34]} (22... f5 $1 $17 {[%cal Rf5e4]} 23. Bf3 (23. Bc6 Ne5 $17) 23... Rc4 (23... Rxc2 24. Rdc1 $17)) 23. Rxd7+ {[%emt 0:02:34] Loses the game.} Bxd7 $19 {[%emt 0:00:08]} 24. Nxb6 {[%emt 0:00:06] [#]} Rc3+ {[%emt 0:00:59]} (24... Rxh4 25. Nxd7 Kxd7 (25... Rxd7 26. f4 $11) 26. b6 Rc3+ 27. Kd2 $16) 25. Bd3 {[%emt 0:07:08]} Rxa3 {[%emt 0:00:57]} (25... Rxh4 26. f4 Rc5 (26... Rxa3 $2 27. Nc4 $18) 27. c4 $15) 26. c4 {[%emt 0:00:06]} (26. g3 $142) 26... e5 {[%emt 0:02:31]} (26... Rxh4 27. c5 $19) (26... Rxg2 27. c5 e5 28. Nxd7 Kxd7 29. c6+ Kd6 30. b6 $16) 27. Nd5+ $2 {[%emt 0:05:38]} (27. Nxd7 {is the only way for White.} Kxd7 28. b6) 27... Kd6 {[%emt 0:04:08]} 28. b6 {[%emt 0:01:24] [#]} (28. Nxf6 $142 Rd4 (28... Rxh4 29. c5+ Ke6 30. Nxd7 $17) (28... Rxc4 $2 29. Ke2 $19) 29. Ne4+ Ke7 30. Nc5) 28... Rxd3+ $1 {[%emt 0:03:32][%mdl 512] Weighted Error Value: White=0.57/Black=0.03 (flawless)   Mistake:       	White=6     	Black=1      OK:         	White=7     	Black=10     Best:        	---       	Black=2      Brilliant:      	---       	Black=1} 0-1

[Event "EICC 2025"]
[Site "Eforie-Nord"]
[Date "2025.03.17"]
[Round "3.43"]
[White "Pichot, Alan"]
[Black "Szpar, Milosz"]
[Result "1-0"]
[Annotator "TA"]
[ECO "C01"]
[WhiteElo "2613"]
[BlackElo "2449"]
[PlyCount "79"]
[EventDate "2025.03.14"]
[EventType "swiss"]
[EventCountry "ROU"]
[SourceTitle "playchess.com"]
[Source "ChessBase"]
[SourceQuality "1"]
[TimeControl "40/5400+30:1800+30"]

{[%evp 16,78,16,12,23,25,21,17,25,27,32,30,32,18,21,31,31,30,45,36,47,43,99,57,59,90,74,72,139,44,48,54,102,121,236,243,235,241,225,232,239,160,265,265,302,272,426,425,460,456,523,523,477,381,554,583,583,584,569,562,601,600,650,650,701]} 1. e4 {[%emt 0:00:12]} e6 {[%emt 0:00:11]} 2. d4 {[%emt 0:01:27]} d5 {[%emt 0:00:06]} 3. exd5 {[%emt 0:00:58]} exd5 {[%emt 0:00:07]} 4. Nf3 {[%emt 0:00:08]} Nf6 {[%emt 0:03:29]} 5. Bd3 {[%emt 0:00:12]} c5 {[%emt 0:02:25]} 6. c3 {[%emt 0:00:08]} Be7 {[%emt 0:01:37]} 7. O-O {[%emt 0:00:36]} O-O {[%emt 0:01:54]} 8. dxc5 {[%emt 0:04:36]} Bxc5 {[%emt 0:01:10]} 9. Bf4 {[%emt 0:00:20]} Nc6 {[%emt 0:01:39] C01: French: Exchange Variation.} 10. Nbd2 {[%emt 0:03:48]} Re8 {[%emt 0:07:57]} 11. Qc2 {[%emt 0:03:28]} h6 {[%emt 0:04:10] The position is equal.} 12. Rfe1 {[%emt 0:04:30]} Be6 {[%emt 0:17:39] A sharp opening} 13. Nb3 {[%emt 0:18:01]} Bd6 {[%emt 0:00:05]} 14. Qd2 $146 {[%emt 0:11:09]} (14. Bxd6 Qxd6 15. h3 Rac8 16. Qd2 Bd7 17. Rad1 Rcd8 18. Bc2 Qc7 19. Rxe8+ Rxe8 20. Re1 Rxe1+ 21. Qxe1 {½-½ Stukalov,M (2253)-Krejcir,S (2187) W-ch WS/M/702 email 2018}) 14... Bxf4 {[%emt 0:04:25]} 15. Qxf4 {[%emt 0:00:07]} Nh5 {[%emt 0:00:15]} 16. Qd2 {[%emt 0:03:16]} Qf6 {[%emt 0:03:41]} 17. Re3 {[%emt 0:01:56]} Nf4 {[%emt 0:08:38]} 18. Rae1 {[%emt 0:00:59]} Re7 {[%emt 0:12:25]} ({Black should play} 18... Bd7 $14) 19. Nfd4 {[%emt 0:02:46]} Rae8 {[%emt 0:08:06]} 20. Rf3 {[%emt 0:11:44]} (20. Bf1 {simplifies} Ng6 21. Nxe6 Rxe6 22. Qxd5 Rxe3 23. Rxe3 Rxe3 24. fxe3 Qe7 25. Qf3) 20... g5 {[%emt 0:00:24]} 21. g3 {[%emt 0:00:47]} Bh3 {[%emt 0:05:48]} (21... Qg7 $142) 22. Rxe7 {[%emt 0:08:58]} (22. Rd1 $16 Ne5 23. gxf4 Nxf3+ 24. Nxf3) 22... Qxe7 $14 {[%emt 0:01:04]} 23. Re3 $36 {[%emt 0:00:09][%mdl 2048] White has some pressure.} (23. gxf4 $2 Qe1+ 24. Qxe1 Rxe1+) 23... Nxd4 {[%emt 0:03:37] Black is on the road to losing.} (23... Nxd3 $1 $14 {deserves consideration.} 24. Rxe7 Rxe7) 24. Nxd4 $16 {[%emt 0:02:09][%cal Bb3d4,Bd4c2,Bc2e3][%mdl 32]} (24. gxf4 $2 Nf3+ 25. Kh1 Nxd2 $19) (24. Bh7+ $2 Kxh7 25. Nxd4 Ne6 26. Qc2+ Kg8 $19) 24... Nxd3 {[%emt 0:04:16]} (24... Ne6 $16 {is a better defense.}) 25. Rxe7 $18 {[%emt 0:02:34]} (25. Qxd3 Qd8 $14) 25... Rxe7 {[%emt 0:00:06] [#]} 26. Nc2 {[%emt 0:00:04] Repels Re1+} (26. Qxd3 $2 {leads to mate.} Re1+) 26... Bf5 {[%emt 0:04:25]} 27. Ne3 {[%emt 0:00:43]} Be4 {[%emt 0:00:32]} 28. Qd1 {[%emt 0:07:21]} Ne5 {[%emt 0:02:15] [#]} (28... d4 $16) 29. f4 $1 {[%emt 0:00:11]} ({And not} 29. Nxd5 Nf3+ $11) 29... Nf3+ {[%emt 0:00:45]} 30. Kf2 {[%emt 0:00:12]} gxf4 {[%emt 0:01:16]} (30... Kg7 $142 31. Nf5+ (31. Nxd5 Bxd5 32. Qxd5 Nxh2 $18) 31... Bxf5 32. Qxf3 Be4) 31. gxf4 {[%emt 0:03:23]} (31. Nxd5 fxg3+ 32. Kxg3 (32. hxg3 Re6 $18) 32... Re6 $18) 31... Rd7 {[%emt 0:00:15]} 32. Qa4 {[%emt 0:00:27][%csl LRa7,LRd7]} Rd8 {[%emt 0:00:14]} 33. Ng4 {[%emt 0:01:36]} Rd6 {[%emt 0:01:07]} 34. Ne5 {[%emt 0:03:16] and Qe8+ would now be decisive} Nxe5 {[%emt 0:00:38]} (34... Rf6 $142 35. Ke3 (35. Nxf3 Rxf4 36. Qxa7 Rxf3+ 37. Ke1 Kh7 $18) 35... Nxe5) 35. Qe8+ {[%emt 0:00:14] White is clearly winning.} Kg7 {[%emt 0:00:31] White must now prevent ...Nd3+.} 36. Qxe5+ {[%emt 0:00:08]} Rf6 {[%emt 0:00:04] [#]} 37. c4 $1 {[%emt 0:00:29][%mdl 512]} Kg6 {[%emt 0:00:09]} (37... Bb1 38. cxd5) 38. cxd5 {[%emt 0:00:23]} Bf5 {[%emt 0:00:06]} 39. h4 {[%emt 0:00:49]} Bg4 {[%emt 0:00:21]} 40. Kg3 {[%emt 0:00:25] Weighted Error Value: White=0.16 (very precise) /Black=0.37  Mistake:       	White=1     	Black=7      Inaccurate:     	White=2     	---        OK:         	White=14    	Black=6      Best:        	White=3     	Black=1      Strong:       	White=1     	---        Brilliant:      	White=1     	---} 1-0

[Event "EICC 2025"]
[Site "Eforie-Nord"]
[Date "2025.03.17"]
[Round "3.44"]
[White "Zanan, Evgeny"]
[Black "Abasov, Nijat"]
[Result "1/2-1/2"]
[Annotator "TA"]
[ECO "E04"]
[WhiteElo "2443"]
[BlackElo "2612"]
[PlyCount "76"]
[EventDate "2025.03.14"]
[EventType "swiss"]
[EventCountry "ROU"]
[SourceTitle "playchess.com"]
[Source "ChessBase"]
[SourceQuality "1"]
[TimeControl "40/5400+30:1800+30"]

{[%evp 10,76,16,0,0,-20,0,-35,-26,-31,-6,-16,-15,-39,-28,-28,-42,-40,-43,-70,-39,-80,-59,-37,-43,-39,-29,-44,-39,-46,-27,-36,-44,-37,10,9,13,6,8,9,4,0,0,0,31,0,0,0,0,0,8,0,0,0,0,0,0,0,0,0,7,0,0,0,0,0,0,0,0]} 1. d4 {[%emt 0:00:09]} d5 {[%emt 0:01:08]} 2. c4 {[%emt 0:00:22]} e6 {[%emt 0:00:08]} 3. Nf3 {[%emt 0:00:18]} Nf6 {[%emt 0:00:08]} 4. g3 {[%emt 0:00:05]} dxc4 {[%emt 0:01:30]} 5. Bg2 {[%emt 0:00:09]} Bb4+ {[%emt 0:00:24]} 6. Nbd2 {[%emt 0:00:12]} b5 {[%emt 0:01:22] E04: Open Catalan: 5 Nf3.} 7. a3 {[%emt 0:05:07]} Bxd2+ {[%emt 0:05:29]} 8. Bxd2 {[%emt 0:00:24]} Bb7 {[%emt 0:00:30] Black is slightly better.} 9. b3 {[%emt 0:11:04]} cxb3 $146 {[%emt 0:01:25]} (9... O-O 10. bxc4 bxc4 11. Qc2 Bd5 12. Bg5 c5 13. O-O cxd4 14. Rfd1 d3 15. exd3 cxd3 16. Rxd3 {½-½ Andreikin,D (2728)-Grischuk,A (2773) Titled Tuesday intern op 26th Oct blitz 2021 (8)}) 10. Qxb3 {[%emt 0:02:47]} a6 {[%emt 0:00:20]} 11. a4 {[%emt 0:07:47]} Bd5 {[%emt 0:12:55]} 12. Qb2 {[%emt 0:21:26]} Nc6 {[%emt 0:01:31]} 13. axb5 {[%emt 0:03:15]} axb5 {[%emt 0:00:50] Threatens to win with ...Rxa1+.} 14. O-O {[%emt 0:01:18]} O-O {[%emt 0:00:30]} 15. e3 {[%emt 0:04:54]} Rb8 {[%emt 0:04:25]} 16. Rfc1 {[%emt 0:04:13]} b4 {[%emt 0:02:49]} 17. Ra6 {[%emt 0:03:22]} Qe8 {[%emt 0:01:30]} 18. Ne1 {[%emt 0:11:29] [#] and Bxd5 should not be overlooked} Bxg2 {[%emt 0:00:53]} 19. Kxg2 {[%emt 0:03:41]} Ne7 {[%emt 0:00:19]} 20. Ra5 $1 {[%emt 0:03:26][%cal Oe1d3]} Ne4 {[%emt 0:09:07]} 21. Nd3 {[%emt 0:07:49] Wards off c5} Rb5 {[%emt 0:06:19]} (21... Nd5 $15) 22. Rxb5 $11 {[%emt 0:01:56]} (22. Bxb4 Rxa5 23. Bxa5 Qa8 $17) 22... Qxb5 {[%emt 0:00:16]} 23. Bxb4 {[%emt 0:00:31]} Qxd3 {[%emt 0:04:15]} 24. Bxe7 {[%emt 0:00:06]} Re8 {[%emt 0:00:05]} 25. Qb1 {[%emt 0:04:01]} ({Much worse is} 25. Rxc7 Nd2 26. Qc1 Qe4+ 27. Kg1 Nf3+ 28. Kf1 h5 $17 (28... Nxh2+ 29. Kg1 $17)) 25... Qd2 {[%emt 0:00:08]} 26. Rc2 {[%emt 0:00:18]} Qa5 {[%emt 0:00:28][%cal Oa5f5] Repels Qb5} 27. f3 {[%emt 0:00:54]} Nd6 {[%emt 0:01:28] The position is equal.} 28. Bxd6 {[%emt 0:00:12]} cxd6 {[%emt 0:00:04][%mdl 4096] Endgame KQR-KQR} 29. Qa2 {[%emt 0:00:36]} Qe1 {[%emt 0:00:00]} 30. Re2 {[%emt 0:00:26]} Qc3 {[%emt 0:02:02]} 31. Qc2 {[%emt 0:00:13]} Qa5 {[%emt 0:00:06]} 32. Qa2 {[%emt 0:00:16]} Qb5 {[%emt 0:00:46]} 33. Rb2 {[%emt 0:00:42]} Qg5 {[%emt 0:00:05]} 34. Qb3 {[%emt 0:01:21]} e5 {[%emt 0:01:09]} 35. Qb5 {[%emt 0:01:10][%cal Rb5e8] [#]} Qe7 {[%emt 0:01:51]} 36. dxe5 {[%emt 0:00:13]} dxe5 {[%emt 0:00:05]} 37. e4 {[%emt 0:00:38]} h5 {[%emt 0:00:54]} 38. Rd2 {[%emt 0:01:05]} g6 {[%emt 0:02:15] Weighted Error Value: White=0.06 (flawless) /Black=0.07 (flawless)   Mistake:       	---       	Black=1      Inaccurate:     	White=4     	Black=2      OK:         	White=10    	Black=12     Best:        	White=2     	---        Strong:       	White=1     	---} 1/2-1/2

[Event "EICC 2025"]
[Site "Eforie-Nord"]
[Date "2025.03.17"]
[Round "3.45"]
[White "Ghimpu, Samuel-Timotei"]
[Black "Ivanchuk, Vasyl"]
[Result "0-1"]
[Annotator "TA"]
[ECO "C02"]
[WhiteElo "2441"]
[BlackElo "2604"]
[PlyCount "70"]
[EventDate "2025.03.14"]
[EventType "swiss"]
[EventCountry "ROU"]
[SourceTitle "playchess.com"]
[Source "ChessBase"]
[SourceQuality "1"]
[TimeControl "40/5400+30:1800+30"]

{[%evp 22,70,29,15,30,29,31,35,32,30,33,22,21,18,54,50,53,57,60,53,60,50,54,0,0,0,0,0,0,-72,-12,-17,0,-34,-9,-33,-16,-35,-41,-119,-118,-119,-113,-131,-121,-173,-165,-246,-255,-333,-327]} 1. e4 {[%emt 0:00:55]} e6 {[%emt 0:01:36]} 2. d4 {[%emt 0:00:22]} d5 {[%emt 0:00:04]} 3. e5 {[%emt 0:06:20]} c5 {[%emt 0:00:19]} 4. c3 {[%emt 0:00:14]} Nc6 {[%emt 0:00:04]} 5. Nf3 {[%emt 0:00:15]} Bd7 {[%emt 0:00:20]} 6. Be2 {[%emt 0:00:48]} Nge7 {[%emt 0:02:09]} 7. Na3 {[%emt 0:02:58]} cxd4 {[%emt 0:03:40]} 8. cxd4 {[%emt 0:00:18]} Nf5 {[%emt 0:00:03]} 9. Nc2 {[%emt 0:00:24]} Nb4 {[%emt 0:00:03]} 10. O-O {[%emt 0:00:58]} Nxc2 {[%emt 0:00:57]} 11. Qxc2 {[%emt 0:00:03]} Qb6 {[%emt 0:00:08]} 12. Qd3 {[%emt 0:00:23]} h6 {[%emt 0:08:47] C02: French: Advance Variation.} 13. Bd2 {[%emt 0:10:28]} Bb4 {[%emt 0:01:01]} 14. Bc3 $146 {[%emt 0:00:32]} (14. Bxb4 Qxb4 15. Rfc1 a6 16. Rc3 O-O 17. Rb3 Qa4 18. g4 Ne7 19. Rxb7 Ng6 20. Qd2 {1-0 Hector,J (2556)-Sumets,A (2575) Lund CellaVision Cup 2018 (5)}) 14... O-O {[%emt 0:02:53] White is slightly better.} 15. Qd2 {[%emt 0:08:55]} a5 {[%emt 0:02:58]} 16. Rfc1 {[%emt 0:12:22]} Rfc8 {[%emt 0:00:45]} 17. a4 {[%emt 0:00:08]} Bxc3 {[%emt 0:11:51]} 18. bxc3 {[%emt 0:00:38]} Qd8 {[%emt 0:00:02]} 19. Rcb1 {[%emt 0:18:56]} Rc7 {[%emt 0:03:29]} 20. Ra3 {[%emt 0:23:10]} Rac8 {[%emt 0:04:40]} 21. g3 {[%emt 0:04:00]} Qe8 {[%emt 0:01:33]} 22. Bb5 {[%emt 0:04:12]} ({White should try} 22. Qb2 $14) 22... Qf8 {[%emt 0:09:01]} 23. Qc1 {[%emt 0:01:10]} Bxb5 {[%emt 0:01:07]} 24. Rxb5 {[%emt 0:00:10][%cal Oc1b2]} f6 {[%emt 0:00:01]} 25. exf6 {[%emt 0:03:46]} (25. Rxa5 fxe5 26. Nxe5 Nxd4 $19) (25. g4 $11 {keeps the balance.} Ne7 26. Rab3) 25... Nd6 {[%emt 0:21:33]} ({Black should try} 25... Qxf6 $17 {...Nd6 would now be deadly.} 26. Rxa5 Nxg3 27. hxg3 Qxf3) 26. Rbb3 $11 {[%emt 0:00:13]} Nc4 $36 {[%emt 0:00:11][%mdl 2048] Black has the initiative.} 27. Ra2 {[%emt 0:00:13]} (27. Ne5 $5 Nxa3 28. fxg7 Rxg7 29. Rxa3 $11) 27... Qxf6 {[%emt 0:00:04]} 28. Ne1 {[%emt 0:01:06]} Qf5 {[%emt 0:07:33]} 29. Qc2 {[%emt 0:00:30]} Nd6 {[%emt 0:01:44][%cal Bc4d6,Bd6f5,Bf5d4][%mdl 32]} 30. f3 {[%emt 0:00:27] [#] Prevents Ne4.} (30. Qxf5 $15 exf5 31. Rb6) 30... Qxc2 $1 $17 31. Rxc2 {[%emt 0:00:01]} Rc4 {[%emt 0:07:04]} 32. Nd3 {[%emt 0:01:03]} Nf5 {[%emt 0:07:03]} 33. Rd2 {[%emt 0:00:30]} (33. Rc1 $17) 33... Rxc3 $19 {[%emt 0:00:15]} (33... Rxa4 $6 34. Kf2 $11) 34. Rxc3 {[%emt 0:00:22]} (34. Rxb7 {is a better defense.} Nxd4 35. Ne5 Nxf3+ 36. Nxf3 Rxf3 37. Ra7) 34... Rxc3 {[%emt 0:00:01]} 35. Nc5 {[%emt 0:00:29] [#]} Nxd4 $1 {[%emt 0:00:36][%mdl 512] Weighted Error Value: White=0.25 (precise) /Black=0.08 (flawless)   Mistake:       	White=5     	Black=1      Inaccurate:     	White=2     	Black=1      OK:         	White=5     	Black=12     Best:        	White=1     	Black=1      Strong:       	---       	Black=1} 0-1